bitfinex-derivatives/quotes_ETHF0:USTF0_20250929
["timestamp","ask_amount","ask_price","bid_price","bid_amount"]
[1759106371806,0.78017,4130.3,4130.2,1.43972093]
[1759106372710,0.78017,4130.3,4130.2,1.75392093]
[1759106373215,1.29539133,4130.3,4130.2,1.75392093]
[1759106373615,0.78017,4130.3,4130.2,1.75392093]
[1759106374004,0.7775,4130.1,4130.0,4.22032093]
[1759106374314,1.29270751,4130.1,4130.0,3.2078]
[1759106374511,1.21317,4129.6,4129.5,3.2078]
[1759106374808,1.21317,4129.6,4129.4,1.01252093]
[1759106374809,0.1305,4129.5,4129.4,1.01252093]
[1759106375015,1.42320751,4129.5,4129.4,1.01252093]
[1759106375208,0.908,4129.5,4129.4,1.01252093]
[1759106375914,0.908,4129.5,4129.4,1.22052093]
[1759106381816,0.908,4129.5,4129.4,1.01252093]
[1759106382111,0.443,4129.2,4129.1,1.01252093]
[1759106382317,1.21322,4129.2,4129.1,1.01252093]
[1759106382619,1.21322,4129.2,4129.1,1.22052093]
[1759106384615,1.21325,4128.9,4128.8,1.22052093]
[1759106386118,1.21328,4128.6,4128.5,4.42832093]
[1759106387021,1.21328,4128.6,4128.5,4.64752093]
[1759106388123,1.21328,4128.6,4128.5,4.96172093]
[1759106399326,0.2133,4128.2,4128.1,0.5336]
[1759106399626,1.16642,4128.2,4128.0,4.22032093]
[1759106399830,0.7306,4128.1,4128.0,4.22032093]
[1759106400128,0.74611,4128.4,4128.3,0.4304]
[1759106400320,0.74611,4128.4,4128.3,1.76252093]
[1759106400519,0.95941,4128.4,4128.3,1.76252093]
[1759106400715,1.16641,4128.4,4128.3,1.76252093]
[1759106405627,0.43583,4128.1,4128.0,3.2078]
[1759106405833,1.41443,4128.1,4128.0,3.2078]
[1759106406027,1.92988157,4128.1,4128.0,3.2078]
[1759106406329,0.85616,4127.8,4127.7,0.00188711]
[1759106406534,1.16646,4127.8,4127.7,0.00188711]
[1759106409732,1.68175305,4127.8,4127.7,0.00188711]
[1759106410737,6.68175305,4127.8,4127.7,0.00188711]
[1759106412437,1.18569,4126.6,4126.5,3.9628]
[1759106412738,1.18569,4126.6,4126.5,4.30823552]
[1759106413536,1.18790633,4126.6,4126.5,4.31066515]
[1759106414836,1.18790633,4126.6,4126.5,1.10286515]
[1759106416133,1.18790633,4126.6,4126.5,0.00242963]
[1759106416342,1.43590633,4126.6,4126.5,1.30806515]
[1759106416641,1.43590633,4126.6,4126.5,1.63406515]
[1759106416831,1.43590633,4126.6,4126.5,1.30806515]
[1759106417542,1.18790633,4126.6,4126.5,1.30806515]
[1759106417740,1.43590633,4126.6,4126.5,1.30806515]
[1759106418636,1.43590633,4126.6,4126.5,0.87906515]
[1759106418832,1.43590633,4126.6,4126.5,0.00242963]
[1759106419028,1.43590633,4126.6,4125.5,3.6368]
[1759106419029,0.5345,4125.6,4125.5,3.6368]
[1759106419233,0.5345,4125.6,4125.5,3.9628]
[1759106419430,0.3293,4125.6,4125.5,3.9628]
[1759106419939,0.43609,4125.7,4125.5,3.6396102]
[1759106420140,0.76539,4125.7,4125.6,0.755]
[1759106420341,0.76539,4125.7,4125.6,1.63163552]
[1759106421530,0.85649,4125.7,4125.6,1.10043552]
[1759106421740,0.85649,4125.7,4125.6,1.63163552]
[1759106422044,1.18579,4125.7,4125.6,1.63163552]
[1759106426241,1.18579,4125.7,4125.5,3.2106102]
[1759106426447,0.5396,4125.6,4125.5,0.7557102]
[1759106427149,0.7446,4125.6,4125.5,0.7557102]
[1759106427655,0.7446,4125.6,4125.5,1.63234572]
[1759106428150,0.7446,4125.6,4125.5,1.30694572]
[1759106428356,0.7446,4125.6,4125.5,1.63234572]
[1759106436562,0.7446,4125.6,4125.5,0.7557102]
[1759106436761,0.7446,4125.6,4125.5,1.63234572]
[1759106437962,0.335,4126.0,4125.9,0.4275]
[1759106438154,3.41461633,4126.6,4126.5,0.4275]
[1759106438359,5.15613731,4126.6,4126.5,1.62953552]
[1759106440467,5.15613731,4126.6,4126.5,1.30413552]
[1759106440664,5.15613731,4126.6,4126.5,0.2127]
[1759106441363,5.15613731,4126.6,4126.5,0.4275]
[1759106441562,5.15613731,4126.6,4126.5,0.7529]
[1759106442267,0.85473731,4126.6,4126.5,0.7529]
[1759106442662,0.51973731,4126.6,4126.5,0.7529]
[1759106443172,0.85473731,4126.6,4126.5,0.7529]
[1759106443564,1.26433731,4126.6,4126.5,0.4275]
[1759106443764,1.51233731,4126.6,4126.5,0.2127]
[1759106444272,0.9771,4126.5,4126.4,0.87663552]
[1759106444473,1.82962098,4126.5,4126.4,0.87663552]
[1759106444965,1.39362098,4126.5,4126.4,1.62953552]
[1759106445168,0.51752098,4126.5,4126.4,0.7529]
[1759106445470,0.85252098,4126.5,4126.4,1.62953552]
[1759106445859,0.51752098,4126.5,4126.4,1.62953552]
[1759106446059,1.05712098,4126.5,4126.4,1.62953552]
[1759106446263,0.85252098,4126.5,4126.4,1.62953552]
[1759106446663,0.51752098,4126.5,4126.4,1.62953552]
[1759106447568,0.00221633,4126.6,4126.5,1.3084]
[1759106448471,0.33721633,4126.6,4126.5,0.8724]
[1759106448768,0.33721633,4126.6,4126.5,0.2127]
[1759106448769,0.74681633,4126.6,4126.5,0.2127]
[1759106448971,0.7446,4126.2,4126.1,3.4205]
[1759106449175,0.7446,4126.2,4126.1,4.29713552]
[1759106449376,0.7446,4126.2,4126.1,4.51193552]
[1759106449672,0.7446,4126.2,4126.1,4.83733552]
[1759106450875,0.5396,4126.2,4126.1,4.83733552]
[1759106451273,0.335,4126.4,4126.1,4.51193552]
[1759106451475,1.18062,4126.3,4126.2,0.7529]
[1759106451776,1.18062,4126.3,4126.2,1.62953552]
[1759106451978,0.7446,4126.3,4126.2,1.62953552]
[1759106453777,0.43603,4126.2,4126.1,3.2078]
[1759106453975,1.16903,4126.2,4126.1,4.30173552]
[1759106454176,0.733,4126.2,4126.1,4.85833552]
[1759106454776,0.5189,4126.2,4126.1,4.85833552]
[1759106456777,0.43603,4126.3,4126.1,4.85833552]
[1759106456979,0.733,4126.2,4126.1,0.2173]
[1759106457285,0.4197,4125.9,4125.8,0.2173]
[1759106457475,0.733,4125.9,4125.8,1.09393552]
[1759106457776,1.16907,4125.9,4125.8,1.09393552]
[1759106458281,1.16907,4125.9,4125.8,1.31283552]
[1759106458587,1.16907,4125.9,4125.8,1.65053552]
[1759106459177,0.43606,4126.0,4125.8,2.52717104]
[1759106459376,0.43606,4126.0,4125.9,0.7739]
[1759106459785,0.43606,4126.0,4125.9,0.2173]
[1759106459786,0.5454,4126.0,4125.9,0.2173]
[1759106459985,0.5454,4126.0,4125.9,1.31283552]
[1759106460186,0.5454,4126.0,4125.9,1.65053552]
[1759106460187,0.8587,4126.0,4125.9,1.65053552]
[1759106460581,1.29475,4126.0,4125.9,1.31283552]
[1759106461287,1.29475,4126.0,4125.9,1.65053552]
[1759106462387,1.2019,4126.4,4126.3,0.4362]
[1759106462686,1.93474278,4126.4,4126.3,1.65053552]
[1759106464491,1.93474278,4126.4,4126.3,0.87663552]
[1759106464991,1.93474278,4126.4,4126.3,1.09393552]
[1759106465189,0.64166,4125.9,4125.8,0.2173]
[1759106465384,0.95496,4125.9,4125.8,1.65053552]
[1759106465793,0.5189,4125.9,4125.8,1.65053552]
[1759106467106,0.43605,4126.0,4125.8,2.52717104]
[1759106467290,0.43605,4126.0,4125.8,2.18947104]
[1759106467492,0.43604,4126.1,4126.0,0.9018]
[1759106467683,0.3133,4126.1,4126.0,0.9018]
[1759106467885,0.51929764,4126.1,4126.0,0.9018]
[1759106468181,0.43603,4126.2,4126.1,0.7739]
[1759106468182,0.74933,4126.2,4126.1,0.7739]
[1759106468385,1.2686907,4126.2,4126.1,1.65053552]
[1759106469093,1.4742907,4126.2,4126.1,1.65053552]
[1759106472190,1.4742907,4126.2,4126.1,0.7739]
[1759106472395,1.6883907,4126.2,4126.1,1.78862745]
[1759106474002,0.31171633,4126.6,4126.5,0.7867]
[1759106474297,1.04709477,4126.6,4126.5,0.7867]
[1759106474695,0.52159477,4126.6,4126.5,0.7867]
[1759106474898,3.2078,4127.1,4127.0,0.3883]
[1759106475091,3.7333,4127.1,4127.0,0.8368]
[1759106475292,3.7333,4127.1,4127.0,0.7867]
[1759106475572,0.5255,4127.1,4127.0,0.7867]
[1759106475910,0.3095,4127.4,4127.3,0.7867]
[1759106476026,0.31264513,4127.4,4127.3,1.80142745]
[1759106476902,0.52864513,4127.4,4127.3,1.80142745]
[1759106487901,0.00314513,4127.4,4127.3,1.80142745]
[1759106488910,3.7853,4128.1,4128.0,0.777]
[1759106489203,3.9934,4128.1,4128.0,1.79172745]
[1759106489909,3.99599409,4128.1,4128.0,1.79172745]
[1759106490515,3.96639409,4128.1,4128.0,1.79172745]
[1759106492009,0.75859409,4128.1,4128.0,1.79172745]
[1759106492905,0.00259409,4128.1,4128.0,1.79172745]
[1759106495407,0.33309409,4128.1,4128.0,1.79172745]
[1759106497309,0.54119409,4128.1,4128.0,0.777]
[1759106497614,0.5494,4127.5,4127.4,0.5513]
[1759106497808,0.5494,4127.5,4127.4,1.56602745]
[1759106498006,0.5494,4127.5,4127.4,1.79172745]
[1759106498202,0.8799,4127.5,4127.4,1.79172745]
[1759106498418,0.8799,4127.5,4127.4,1.46072745]
[1759106500114,0.5386,4127.5,4127.4,1.79172745]
[1759106500707,0.8799,4127.5,4127.4,0.446]
[1759106501006,0.8799,4127.5,4127.4,1.46072745]
[1759106501401,0.8799,4127.5,4127.4,1.79172745]
[1759106502518,0.756,4127.5,4127.4,1.79172745]
[1759106504213,0.5386,4127.5,4127.4,1.79172745]
[1759106504411,0.8799,4127.5,4127.4,1.79172745]
[1759106509924,0.756,4127.5,4127.4,1.79172745]
[1759106510133,0.5386,4127.5,4127.4,1.79172745]
[1759106510424,0.97448,4127.5,4127.4,1.79172745]
[1759106510814,0.3305,4127.5,4127.4,1.79172745]
[1759106511014,0.43588,4127.5,4127.4,1.79172745]
[1759106511224,0.97448,4127.5,4127.4,1.79172745]
[1759106511419,1.31578,4127.5,4127.4,1.79172745]
[1759106512723,1.31578,4127.5,4127.4,1.46072745]
[1759106513116,1.31578,4127.5,4127.4,1.79172745]
[1759106514318,1.19188,4127.5,4127.4,1.79172745]
[1759106514819,0.97448,4127.5,4127.4,1.79172745]
[1759106519729,0.97448,4127.5,4127.4,2.03872745]
[1759106520534,0.97448,4127.5,4127.4,1.79172745]
[1759106520718,0.97448,4127.5,4127.4,2.03872745]
[1759106521032,1.31488,4127.5,4127.4,2.03872745]
[1759106522832,1.31488,4127.5,4127.4,1.46072745]
[1759106523033,0.77038,4126.5,4126.4,1.01472745]
[1759106523332,1.31538,4126.5,4126.4,1.01472745]
[1759106525820,1.31538,4126.5,4126.4,1.24032745]
[1759106527735,0.8794,4126.5,4126.4,1.76582745]
[1759106527932,1.10034,4126.9,4126.8,0.4452]
[1759106528233,1.43364,4126.9,4126.8,1.45992745]
[1759106528737,3.2078,4127.0,4126.9,0.7511]
[1759106528931,3.7468,4127.0,4126.9,0.7511]
[1759106530337,4.0872,4127.0,4126.9,0.7511]
[1759106530831,3.7468,4127.0,4126.9,0.7511]
[1759106531634,0.3333,4127.0,4126.9,0.7511]
[1759106532033,0.5436,4127.0,4126.9,0.7511]
[1759106534240,0.5436,4127.0,4126.9,1.62757116]
[1759106534439,0.8737,4127.0,4126.9,1.62757116]
[1759106534648,0.8737,4127.0,4126.9,1.32167116]
[1759106537339,0.8737,4127.0,4126.9,1.65547116]
[1759106539543,0.8737,4127.0,4126.9,0.87647116]
[1759106540039,0.1246,4126.5,4126.3,3.2078]
[1759106540247,0.7423,4126.4,4126.3,3.4257]
[1759106541137,0.7423,4126.4,4126.3,3.2078]
[1759106541340,0.7423,4126.4,4126.3,4.30217116]
[1759106541747,0.7423,4126.4,4126.3,1.09437116]
[1759106542148,0.7423,4125.9,4125.8,3.6362]
[1759106542341,0.7423,4125.9,4125.8,4.51267116]
[1759106543039,0.5368,4125.9,4125.8,5.72294232]
[1759106543237,0.7838,4126.4,4126.3,0.5517]
[1759106543443,0.9893,4126.4,4126.3,1.63867116]
[1759106544242,1.08976,4127.3,4126.3,1.63867116]
[1759106544440,3.5326,4126.7,4126.6,1.66777116]
[1759106544643,3.7566,4126.7,4126.6,1.66777116]
[1759106544843,3.9678,4126.7,4126.6,1.66777116]
[1759106545046,1.196,4126.4,4126.3,0.2263]
[1759106545247,0.76,4126.4,4126.3,1.10277116]
[1759106545448,0.76,4126.4,4126.3,1.66777116]
[1759106546045,0.3248,4126.6,4126.4,0.3393]
[1759106546245,0.3248,4126.6,4126.5,0.452]
[1759106546448,0.5488,4126.6,4126.5,0.7913]
[1759106547648,3.2078,4126.7,4126.6,0.7913]
[1759106547948,0.3248,4126.9,4126.8,0.452]
[1759106548144,0.76,4126.9,4126.8,0.7913]
[1759106548949,0.76,4126.9,4126.8,0.452]
[1759106549954,0.76,4126.9,4126.8,0.7913]
[1759106551447,0.76,4126.9,4126.2,0.43601]
[1759106551448,0.1356,4126.5,4125.7,3.2078]
[1759106551651,1.19606,4125.8,4125.5,0.0028102]
[1759106551849,1.19608,4125.6,4125.5,0.0028102]
[1759106553152,1.19608,4125.6,4125.5,0.87928136]
[1759106556854,1.19608,4125.6,4125.5,1.10558136]
[1759106557760,1.19608,4125.6,4125.5,0.87928136]
[1759106559155,1.19608,4125.6,4125.5,1.10558136]
[1759106561065,1.19608,4125.6,4125.5,1.33128136]
[1759106561266,1.19608,4125.6,4125.5,1.67058136]
[1759106561462,1.19608,4125.6,4125.5,0.87928136]
[1759106561658,1.19608,4125.6,4125.5,1.10558136]
[1759106562652,1.19608,4125.6,4125.5,0.87928136]
[1759106563058,1.19608,4125.6,4125.5,1.10558136]
[1759106563460,1.19608,4125.6,4125.5,0.0028102]
[1759106563665,1.19608,4125.6,4125.5,0.87928136]
[1759106567766,1.19608,4125.6,4125.5,1.67058136]
[1759106569364,0.1356,4126.0,4125.5,2.54705252]
[1759106569564,0.3248,4125.9,4125.8,2.20494232]
[1759106569769,0.3248,4125.9,4125.8,2.54424232]
[1759106570271,0.5488,4125.9,4125.8,0.7913]
[1759106570566,0.5488,4125.9,4125.8,1.66777116]
[1759106571765,0.5488,4126.4,4126.3,0.452]
[1759106572068,0.5488,4126.4,4126.3,0.7913]
[1759106572369,0.5488,4126.4,4126.3,1.10277116]
[1759106572370,0.76,4126.4,4126.3,1.10277116]
[1759106572665,0.76,4126.4,4126.3,1.66777116]
[1759106572868,0.3248,4126.4,4126.3,1.66777116]
[1759106573460,0.3248,4126.7,4126.6,0.7913]
[1759106573665,0.3248,4126.7,4126.6,1.66777116]
[1759106574360,3.2078,4126.8,4126.7,0.7499]
[1759106575269,3.7517,4126.8,4126.7,0.7499]
[1759106575969,0.5439,4126.8,4126.7,0.7499]
[1759106583783,3.6371,4127.4,4127.3,0.7499]
[1759106584086,0.4293,4127.4,4127.3,1.62637116]
[1759106584283,0.7597,4127.4,4127.3,1.62637116]
[1759106584786,0.7597,4127.4,4127.3,0.7499]
[1759106585987,0.5439,4127.4,4127.3,0.7499]
[1759106586184,0.3304,4127.4,4127.3,0.7499]
[1759106586587,0.5439,4127.4,4127.3,0.7499]
[1759106588586,0.3304,4127.4,4127.3,0.7499]
[1759106588782,0.3304,4127.9,4127.4,0.43589]
[1759106589092,0.3304,4127.9,4127.8,1.62637116]
[1759106589285,0.3304,4128.0,4127.8,1.29987116]
[1759106589491,0.3304,4128.0,4127.9,0.7499]
[1759106591097,0.883,4128.0,4127.9,0.7499]
[1759106595394,0.3304,4128.0,4127.9,0.7499]
[1759106596093,0.00259409,4128.1,4127.9,0.6694]
[1759106596296,0.00259409,4128.1,4128.0,1.76647529]
[1759106596490,0.31109409,4128.1,4128.0,1.76647529]
[1759106596891,0.51489409,4128.1,4128.0,1.76647529]
[1759106601295,0.31109409,4128.1,4128.0,1.76647529]
[1759106602702,0.51489409,4128.1,4128.0,1.76647529]
[1759106602903,0.95071409,4128.1,4128.0,1.76647529]
[1759106607998,0.74691409,4128.1,4128.0,1.76647529]
[1759106608194,1.08934,4128.9,4128.0,1.56457529]
[1759106608405,1.18434,4128.8,4128.7,0.7653]
[1759106608803,0.97464,4128.8,4128.7,0.7653]
[1759106609004,0.75163,4129.0,4128.7,0.7653]
[1759106609208,0.31770919,4129.0,4128.9,0.7653]
[1759106609600,0.31770919,4129.0,4128.9,1.77897529]
[1759106609907,0.54070919,4129.0,4128.9,1.77897529]
[1759106612011,0.00180919,4129.0,4128.9,1.77897529]
[1759106612504,0.31770919,4129.0,4128.9,1.77897529]
[1759106613103,0.00180919,4129.0,4128.9,1.77897529]
[1759106613610,0.3159,4129.3,4129.2,0.426]
[1759106613905,0.3159,4129.7,4129.6,0.7653]
[1759106614105,0.3159,4129.7,4129.6,1.77897529]
[1759106614309,0.5389,4129.7,4129.6,1.77897529]
[1759106614697,0.54201361,4129.7,4129.6,1.77897529]
[1759106615305,0.54201361,4129.7,4129.6,1.96980499]
[1759106615505,0.31901361,4129.7,4129.6,1.96980499]
[1759106615710,0.54201361,4129.7,4129.6,1.96980499]
[1759106620111,0.54201361,4129.7,4129.6,2.21580499]
[1759106620706,0.75171361,4129.7,4129.6,0.672]
[1759106620920,0.75171361,4129.7,4129.6,1.47567529]
[1759106621212,0.5671,4129.5,4129.4,4.22147529]
[1759106621400,0.883,4129.5,4129.4,3.2078]
[1759106621605,5.883,4129.5,4129.4,3.2078]
[1759106621915,1.39782159,4129.5,4129.4,3.2078]
[1759106624412,0.883,4129.5,4129.4,3.6338]
[1759106624619,0.883,4129.5,4129.4,3.9731]
[1759106624911,1.39787256,4129.5,4129.4,3.2078]
[1759106627322,1.18432,4129.1,4129.0,1.47567529]
[1759106628117,1.18432,4129.1,4129.0,2.02497529]
[1759106636523,1.18432,4129.1,4129.0,1.25967529]
[1759106637026,1.18432,4129.1,4129.0,1.47317529]
[1759106638325,1.18432,4129.1,4129.0,2.00367529]
[1759106640625,1.08922,4129.4,4128.8,3.2078]
[1759106640626,0.4119,4128.9,4128.8,3.2078]
[1759106640824,0.7197,4128.9,4128.8,3.2078]
[1759106641022,1.15544,4128.9,4128.8,3.2078]
[1759106641225,1.15544,4128.9,4128.8,4.43497529]
[1759106641527,1.15544,4128.9,4128.8,4.96547529]
[1759106641925,0.43572,4129.1,4128.8,4.96547529]
[1759106642226,0.74353,4129.0,4128.9,0.744]
[1759106642429,0.95033,4129.0,4128.9,1.75767529]
[1759106644629,0.5146,4129.0,4128.9,1.75767529]
[1759106644930,0.3078,4129.3,4129.1,0.3236]
[1759106645226,0.7197,4129.3,4129.2,1.75767529]
[1759106645526,1.23573546,4129.3,4129.2,1.75767529]
[1759106645728,1.23573546,4129.3,4129.2,1.43407529]
[1759106646025,1.03063546,4129.3,4129.2,1.75767529]
[1759106646621,0.5146,4129.3,4129.2,1.75767529]
[1759106647426,1.03083715,4129.3,4129.2,1.75767529]
[1759106648029,0.5146,4129.3,4129.2,1.75767529]
[1759106648824,0.3078,4129.3,4129.2,1.75767529]
[1759106649019,0.3078,4129.4,4129.3,0.744]
[1759106649225,0.3078,4130.3,4129.7,0.3236]
[1759106649432,0.3078,4130.5,4130.4,0.744]
[1759106650124,0.5146,4130.5,4130.4,0.744]
[1759106650325,0.51651576,4130.5,4130.4,0.744]
[1759106651631,0.30971576,4130.5,4130.4,0.93828809]
[1759106651823,0.00191576,4130.5,4130.4,0.93828809]
[1759106652233,0.00191576,4130.5,4130.4,0.744]
[1759106652626,0.31281576,4130.5,4130.4,0.93177607]
[1759106652826,0.53021576,4130.5,4130.4,0.744]
[1759106653428,0.53021576,4130.5,4130.4,0.9338829]
[1759106653827,0.53021576,4130.5,4130.4,0.744]
[1759106654231,0.00191576,4130.5,4130.4,0.744]
[1759106654433,0.31281576,4130.5,4130.4,0.744]
[1759106655735,0.53021576,4130.5,4130.4,0.744]
[1759106656034,0.86501576,4130.5,4130.4,0.744]
[1759106658336,0.86501576,4130.5,4130.4,1.29558603]
[1759106661238,0.86501576,4130.5,4130.4,1.61218603]
[1759106661738,0.86501576,4130.5,4130.4,1.29558603]
[1759106662937,0.86501576,4130.5,4130.4,1.08868603]
[1759106664036,0.86501576,4130.5,4130.4,0.87518603]
[1759106664232,0.8608,4130.2,4130.0,3.2078]
[1759106664430,0.7365,4130.1,4130.0,4.08298603]
[1759106664630,5.7365,4130.1,4130.0,3.2078]
[1759106665732,5.7365,4130.1,4130.0,4.08298603]
[1759106666846,9.45598512,4130.1,4130.0,0.87518603]
[1759106668336,9.45598512,4130.1,4129.0,3.2078]
[1759106668337,1.17222,4129.1,4129.0,3.2078]
[1759106668544,0.7365,4128.8,4128.7,0.76415373]
[1759106668734,0.3113,4128.8,4128.7,0.76415373]
[1759106669142,0.5262,4128.8,4128.7,0.76415373]
[1759106670954,0.3113,4129.2,4129.1,0.4413]
[1759106671246,0.3113,4129.2,4129.1,0.7616]
[1759106671445,0.5262,4129.2,4129.1,0.7616]
[1759106672747,0.5262,4129.2,4129.1,1.63678603]
[1759106673051,0.133,4130.0,4129.4,0.7616]
[1759106673247,0.5262,4129.6,4129.5,1.63678603]
[1759106673644,0.7365,4129.6,4129.5,1.63678603]
[1759106677245,3.5191,4130.1,4130.0,0.4413]
[1759106677450,0.5262,4130.1,4130.0,1.63678603]
[1759106682556,0.3113,4130.1,4130.0,1.63678603]
[1759106683054,0.5262,4130.1,4130.0,1.63678603]
[1759106685759,0.7365,4130.1,4130.0,1.63678603]
[1759106685959,0.4252,4129.9,4129.8,3.2078]
[1759106686255,0.7365,4129.9,4129.8,4.84458603]
[1759106688355,0.5262,4129.9,4129.8,4.84458603]
[1759106689160,0.74692,4130.0,4129.8,4.52428603]
[1759106689360,0.96182,4130.0,4129.9,0.7616]
[1759106694566,1.29672,4130.0,4129.9,0.7616]
[1759106697966,0.33,4129.8,4129.3,3.2078]
[1759106698173,0.76574,4128.9,4128.8,3.2078]
[1759106698364,0.76574,4128.9,4128.8,3.4538]
[1759106700372,0.76574,4128.9,4128.8,3.2078]
[1759106700373,1.21244,4128.9,4128.8,3.2078]
[1759106700569,1.21244,4128.9,4128.8,0.87518603]
[1759106700776,0.76574,4128.9,4128.8,0.87518603]
[1759106700967,0.43574,4128.9,4128.8,4.32898603]
[1759106701273,0.76574,4128.9,4128.8,4.32898603]
[1759106702466,0.98644,4128.9,4128.8,4.32898603]
[1759106702666,0.33,4128.9,4128.8,3.4538]
[1759106702861,0.33,4129.4,4128.8,3.4538]
[1759106703167,0.76569,4129.4,4129.3,0.87518603]
[1759106704472,0.33,4129.4,4129.3,0.87518603]
[1759106706371,0.43568,4129.5,4129.4,0.7179]
[1759106706574,0.43564,4129.9,4129.8,0.2043]
[1759106706874,0.88234,4129.9,4129.8,1.28498603]
[1759106708486,1.21234,4129.9,4129.8,1.28498603]
[1759106711183,1.72385599,4129.9,4129.8,1.28498603]
[1759106711585,1.72385599,4129.9,4129.8,1.59308603]
[1759106712686,1.72385599,4129.9,4129.8,1.28498603]
[1759106714696,0.98634,4129.9,4129.8,1.59728603]
[1759106714887,0.43553,4130.9,4130.5,0.1357]
[1759106715186,0.99397,4131.5,4131.4,0.5572]
[1759106715394,1.38052437,4131.5,4131.4,2.51957206]
[1759106715579,1.50462437,4131.5,4131.4,1.64438603]
[1759106715983,1.50639521,4131.5,4131.4,1.64438603]
[1759106716985,1.84149521,4131.5,4131.4,1.64438603]
[1759106717186,1.84149521,4131.5,4131.4,1.09988603]
[1759106717386,1.33034084,4131.5,4131.4,1.09988603]
[1759106717590,0.77077084,4131.5,4131.4,1.64438603]
[1759106717779,0.89487084,4131.5,4131.4,0.87518603]
[1759106717988,0.89487084,4131.5,4130.6,3.2078]
[1759106717989,0.769,4130.7,4130.6,3.2078]
[1759106718189,1.014,4130.7,4130.6,4.08298603]
[1759106719189,1.014,4130.7,4130.6,4.30768603]
[1759106719386,1.014,4130.7,4130.6,4.64018603]
[1759106719791,1.014,4130.7,4130.6,4.30768603]
[1759106720184,1.014,4130.7,4130.6,1.2373687]
[1759106720379,1.014,4130.7,4130.6,1.0126687]
[1759106720583,0.769,4130.4,4130.3,1.2373687]
[1759106721088,1.20458,4130.4,4130.3,1.5698687]
[1759106721391,1.20458,4130.4,4130.3,1.7818687]
[1759106727389,0.64408,4130.4,4130.3,1.7818687]
[1759106728287,0.96068,4130.4,4130.3,1.7818687]
[1759106728995,1.18348,4130.4,4130.3,1.7818687]
[1759106730489,0.3166,4130.9,4130.3,1.7818687]
[1759106730691,0.96062,4131.0,4130.9,0.7815]
[1759106731597,0.64402,4131.0,4130.9,0.7815]
[1759106731790,0.43552,4131.0,4130.9,0.7815]
[1759106732290,0.43551,4131.2,4130.9,0.4433]
[1759106732495,0.5251,4131.1,4131.0,0.9171]
[1759106732691,0.00177084,4131.5,4131.4,0.4433]
[1759106732893,0.00177084,4131.5,4131.4,1.7941687]
[1759106740405,0.52687084,4131.5,4131.4,1.7941687]
[1759106740602,0.87277084,4131.5,4131.4,1.7941687]
[1759106741599,0.74967084,4131.5,4131.4,1.7941687]
[1759106742005,0.00177084,4131.5,4131.4,1.7941687]
[1759106744794,0.00177084,4131.5,4131.4,2.0391687]
[1759106745504,0.74967084,4131.5,4131.4,2.0391687]
[1759106747902,0.00177084,4131.5,4131.4,2.0391687]
[1759106750209,0.3166,4132.2,4131.4,2.0391687]
[1759106750507,0.3166,4132.2,4132.1,1.7941687]
[1759106751105,0.7479,4132.2,4132.1,0.5599]
[1759106751302,0.75068544,4132.2,4132.1,0.78419836]
[1759106752200,0.00278544,4132.2,4132.1,0.78419836]
[1759106752400,0.00278544,4132.2,4132.1,1.02919836]
[1759106755510,3.2078,4132.8,4132.7,1.20084]
[1759106755805,0.022,4132.9,4132.8,0.7655]
[1759106756709,0.02496706,4132.9,4132.8,0.7655]
[1759106757210,0.02001485,4132.9,4132.8,0.7655]
[1759106758403,0.22921485,4132.9,4132.8,0.7655]
[1759106758610,0.02001485,4132.9,4132.8,1.7781687]
[1759106762312,0.02001485,4132.9,4132.8,2.7908374]
[1759106762611,3.747,4133.8,4133.7,0.7655]
[1759106762814,4.25310273,4133.8,4133.7,1.7781687]
[1759106763212,3.747,4133.8,4133.7,1.7781687]
[1759106763402,3.9729762,4133.8,4133.7,1.7781687]
[1759106763810,0.0029762,4133.8,4133.7,4.9859687]
[1759106764012,0.0029762,4133.8,4133.7,5.2309687]
[1759106764319,0.5392,4134.4,4134.3,0.7655]
[1759106764614,0.2092,4134.4,4134.3,1.7781687]
[1759106764815,0.5392,4134.7,4134.6,0.428]
[1759106765013,0.2092,4134.7,4134.6,1.7781687]
[1759106765206,0.21120634,4134.7,4134.6,1.7781687]
[1759106765407,0.54120634,4134.7,4134.6,1.7781687]
[1759106765603,0.21120634,4134.7,4134.6,1.7781687]
[1759106766109,0.54120634,4134.7,4134.6,1.7781687]
[1759106766419,0.00200634,4134.7,4134.6,1.7781687]
[1759106766715,0.00200634,4134.7,4134.6,2.0231687]
[1759106768708,0.76420634,4134.7,4134.6,2.0231687]
[1759106769209,0.00200634,4134.7,4134.6,2.0231687]
[1759106774817,0.00200634,4134.7,4134.6,1.7781687]
[1759106775018,0.00200634,4134.7,4134.6,2.0231687]
[1759106777722,0.00200634,4134.7,4134.6,3.0358374]
[1759106779317,0.00200634,4134.7,4134.6,2.0231687]
[1759106780318,0.00200634,4134.7,4134.6,1.88373024]
[1759106783028,0.74270634,4134.7,4134.6,1.88373024]
[1759106783425,0.21500634,4134.7,4134.6,1.88373024]
[1759106783824,0.00200634,4134.7,4134.6,1.63873024]
[1759106784314,0.00200634,4134.7,4134.6,1.88373024]
[1759106786221,0.3194,4135.3,4134.6,1.45573024]
[1759106786423,0.75445,4135.5,4135.2,1.30683024]
[1759106786626,0.5392,4135.4,4135.3,0.76]
[1759106787319,0.7504662,4135.4,4135.3,0.76262445]
[1759106787519,1.25598914,4135.4,4135.3,0.76262445]
[1759106789736,1.25598914,4135.4,4135.3,0.00262445]
[1759106789927,6.25598914,4135.4,4135.3,0.00262445]
[1759106794528,0.1337,4136.0,4135.9,0.2221]
[1759106794529,0.5392,4136.0,4135.9,0.2221]
[1759106794728,0.5392,4136.0,4135.9,1.63323024]
[1759106794925,1.18326,4136.3,4136.2,0.76]
[1759106795226,0.7483,4136.3,4136.2,0.87323024]
[1759106795533,0.75081197,4136.3,4136.2,0.87323024]
[1759106795731,1.18577197,4136.3,4136.2,0.87323024]
[1759106796329,0.87323024,4137.2,4136.2,0.87323024]
[1759106796330,4.32669691,4139.3,4136.8,3.2078]
[1759106796528,0.5528,4140.0,4139.2,1.74646048]
[1759106796824,0.5528,4140.0,4139.8,0.87323024]